bitfinex-derivatives/quotes_BTCF0:USTF0_20250119
["timestamp","ask_amount","ask_price","bid_price","bid_amount"]
[1737289949275,0.3608,104610.0,104600.0,0.04788]
[1737289949678,0.72582435,104630.0,104610.0,0.047874]
[1737289949977,0.04817072,104620.0,104610.0,0.315474]
[1737289950981,0.40897072,104620.0,104610.0,0.315474]
[1737289952467,0.36109972,104620.0,104600.0,0.00110966]
[1737289952669,0.408677,104610.0,104590.0,0.55607842]
[1737289952879,0.408677,104610.0,104600.0,0.04788]
[1737289953070,0.54637072,104620.0,104610.0,0.047875]
[1737289953678,0.66023591,104620.0,104610.0,0.047875]
[1737289955777,0.29943591,104620.0,104610.0,0.047875]
[1737289955977,0.11416491,104620.0,104610.0,0.047875]
[1737289956176,0.11416491,104620.0,104610.0,0.186575]
[1737289956575,0.11416491,104620.0,104610.0,0.18768648]
[1737289956777,0.40896972,104620.0,104610.0,0.00111148]
[1737289957086,0.04816972,104620.0,104610.0,0.047875]
[1737289957273,0.40896972,104620.0,104610.0,0.047875]
[1737289957675,0.40896972,104620.0,104610.0,0.00479126]
[1737289957976,0.40896972,104620.0,104610.0,0.00479131]
[1737289958278,0.047878,104610.0,104590.0,0.32516776]
[1737289958471,0.3608,104610.0,104590.0,0.32995952]
[1737289958670,0.58019376,104620.0,104600.0,0.04788]
[1737289958879,0.58019376,104620.0,104600.0,0.05267176]
[1737289959076,0.58019376,104620.0,104610.0,0.047875]
[1737289959287,0.58019376,104620.0,104610.0,0.05266676]
[1737289959483,0.58019376,104620.0,104610.0,0.05566085]
[1737289961882,0.40897072,104620.0,104610.0,0.05566085]
[1737289965879,0.40897072,104620.0,104610.0,0.047875]
[1737289966085,0.40897072,104620.0,104610.0,0.05566075]
[1737289967091,0.40897072,104620.0,104610.0,0.06434866]
[1737289967486,0.40897072,104620.0,104610.0,0.06434861]
[1737289969391,0.40897072,104620.0,104610.0,0.06434857]
[1737289971183,0.58069498,104620.0,104610.0,0.06434857]
[1737289973988,0.58069498,104620.0,104600.0,0.17187293]
[1737289974183,0.408675,104610.0,104600.0,0.17965941]
[1737289974389,0.408675,104610.0,104600.0,0.17187293]
[1737289975000,0.04788,104600.0,104590.0,0.00143386]
[1737289975191,0.81578,104600.0,104590.0,0.00922156]
[1737289975389,0.81578,104600.0,104590.0,0.00922157]
[1737289976593,0.40868,104600.0,104590.0,0.05710557]
[1737289978893,0.5517348,104600.0,104590.0,0.2289785]
[1737289979293,0.5517348,104600.0,104590.0,0.2289782]
[1737289980005,0.6661676,104600.0,104590.0,0.2289782]
[1737289981202,0.5231128,104600.0,104590.0,0.22897807]
[1737289983897,0.5470128,104600.0,104590.0,0.22754421]
[1737289986401,0.5470128,104600.0,104590.0,0.17966021]
[1737289986603,0.5470128,104600.0,104590.0,0.17965991]
[1737289989204,0.5470128,104600.0,104590.0,0.17966017]
[1737289990306,0.5470128,104600.0,104590.0,0.22754417]
[1737289991096,0.5470128,104600.0,104590.0,0.05567124]
[1737289991492,0.5470128,104600.0,104590.0,0.00778724]
[1737289992102,0.5470128,104600.0,104590.0,0.05567124]
[1737289993917,0.0239,104600.0,104590.0,0.41647124]
[1737289995111,0.31472056,104610.0,104590.0,0.41647124]
[1737289995316,0.31472056,104610.0,104600.0,0.69568]
[1737289995518,0.31472056,104610.0,104600.0,0.70346724]
[1737289996330,0.00029972,104620.0,104610.0,0.047875]
[1737289996629,0.17189219,104620.0,104610.0,0.41646224]
[1737289997020,0.19973837,104630.0,104620.0,0.04787]
[1737289997220,0.19973837,104630.0,104620.0,0.05565464]
[1737289997629,0.19973837,104630.0,104620.0,0.41645464]
[1737289997832,0.408662,104640.0,104630.0,0.047866]
[1737289998032,0.408662,104640.0,104630.0,0.05565064]
[1737289998225,0.408662,104640.0,104630.0,0.05086009]
[1737290001825,0.52287465,104640.0,104630.0,0.05086009]
[1737290002528,0.52287465,104640.0,104630.0,0.0596021]
[1737290004140,0.52287465,104640.0,104630.0,0.00299409]
[1737290004430,0.04787,104620.0,104610.0,0.44876267]
[1737290004725,0.04787,104620.0,104610.0,0.4655547]
[1737290004726,0.40867,104620.0,104610.0,0.4655547]
[1737290005428,0.40867,104620.0,104610.0,0.06466603]
[1737290006218,0.40867,104620.0,104610.0,0.01679203]
[1737290006417,0.40867,104620.0,104610.0,0.01679274]
[1737290008025,0.04787,104620.0,104610.0,0.01679274]
[1737290008326,0.04787,104620.0,104610.0,0.06466774]
[1737290010532,0.04787,104620.0,104610.0,0.06466747]
[1737290012022,0.04787,104620.0,104610.0,0.2365404]
[1737290013025,0.47501265,104630.0,104610.0,1.6886654]
[1737290013224,0.047862,104640.0,104630.0,0.047865]
[1737290013426,0.047862,104640.0,104630.0,0.05565024]
[1737290014129,0.814658,104650.0,104630.0,0.05565024]
[1737290014326,0.6233,104650.0,104640.0,0.047861]
[1737290014533,0.4931,104650.0,104640.0,0.05564624]
[1737290015532,0.1323,104650.0,104640.0,0.05564624]
[1737290016031,0.41008694,104660.0,104650.0,0.047857]
[1737290016224,0.55298694,104660.0,104650.0,0.047857]
[1737290016618,0.55298694,104660.0,104650.0,0.05085052]
[1737290016826,0.047859,104650.0,104640.0,0.04786]
[1737290017031,0.408659,104650.0,104640.0,0.05085365]
[1737290019426,0.408659,104650.0,104640.0,0.04786]
[1737290020122,0.408659,104650.0,104640.0,0.05085369]
[1737290020430,0.408659,104650.0,104640.0,0.05085359]
[1737290020934,0.408659,104650.0,104640.0,0.05085357]
[1737290021624,0.047859,104650.0,104640.0,0.05085357]
[1737290021829,0.047859,104650.0,104640.0,0.41165357]
[1737290022032,0.047859,104650.0,104640.0,0.05085357]
[1737290023938,0.408659,104650.0,104640.0,0.05085357]
[1737290025929,0.408659,104650.0,104640.0,0.05564349]
[1737290026536,0.55159588,104650.0,104640.0,0.05564349]
[1737290026836,0.55159588,104650.0,104640.0,0.05085357]
[1737290028238,0.55159588,104650.0,104640.0,0.05085371]
[1737290028938,0.55159588,104650.0,104640.0,0.05564362]
[1737290030332,0.408659,104650.0,104640.0,0.05564362]
[1737290030737,0.432539,104650.0,104640.0,0.05564362]
[1737290031831,0.60379247,104650.0,104640.0,0.05085371]
[1737290032940,0.87859247,104650.0,104640.0,0.05085371]
[1737290034240,0.85019964,104650.0,104640.0,0.05085371]
[1737290034538,0.85019964,104650.0,104640.0,0.05085366]
[1737290035430,0.707339,104650.0,104640.0,0.05085366]
[1737290036638,0.87859247,104650.0,104640.0,0.05085366]
[1737290037338,0.87859247,104650.0,104640.0,0.05564352]
[1737290037533,0.87859247,104650.0,104640.0,0.05085366]
[1737290039037,0.707339,104650.0,104640.0,0.22751629]
[1737290040253,0.707339,104650.0,104640.0,0.2846591]
[1737290040442,0.432539,104650.0,104640.0,0.28465905]
[1737290040744,0.38468,104650.0,104640.0,0.28465905]
[1737290042349,0.38468,104650.0,104640.0,0.23679905]
[1737290042641,0.432537,104650.0,104640.0,0.23679905]
[1737290042848,0.701337,104650.0,104640.0,0.23679905]
[1737290043546,1.01553246,104650.0,104640.0,0.40909099]
[1737290044549,0.87259047,104650.0,104640.0,0.40909099]
[1737290045558,0.701337,104650.0,104640.0,0.23679905]
[1737290045949,0.701337,104650.0,104640.0,0.28466005]
[1737290046148,0.701337,104650.0,104640.0,0.28466028]
[1737290047057,0.73939047,104650.0,104640.0,0.05564454]
[1737290048656,0.73939047,104650.0,104640.0,0.22794925]
[1737290049658,0.568137,104650.0,104640.0,0.22794925]
[1737290049855,0.568137,104650.0,104640.0,0.22794923]
[1737290050158,0.432537,104650.0,104640.0,0.22794923]
[1737290051353,0.38468,104650.0,104640.0,0.22905583]
[1737290051563,0.38468,104650.0,104640.0,0.22794923]
[1737290051858,0.55658552,104650.0,104640.0,0.22905583]
[1737290052254,0.55658552,104650.0,104640.0,0.22794923]
[1737290053360,0.55658552,104650.0,104640.0,0.89304837]
[1737290053361,0.52790532,104650.0,104640.0,0.89304837]
[1737290053658,0.52790532,104650.0,104640.0,0.89415497]
[1737290053855,0.52790532,104650.0,104640.0,0.89415452]
[1737290054954,0.52790532,104650.0,104640.0,0.89304803]
[1737290055547,0.52790532,104650.0,104640.0,0.89415423]
[1737290055753,0.16710532,104650.0,104640.0,0.89415423]
[1737290055952,0.16710532,104650.0,104640.0,0.89304803]
[1737290056652,0.52790532,104650.0,104640.0,0.89304803]
[1737290056859,0.16710532,104650.0,104640.0,0.89304803]
[1737290057052,0.16710532,104650.0,104640.0,0.89415448]
[1737290058053,0.52790532,104650.0,104640.0,0.89304808]
[1737290058364,0.57576232,104650.0,104640.0,0.89304808]
[1737290058956,0.21496232,104650.0,104640.0,0.89304808]
[1737290059160,0.57576232,104650.0,104640.0,0.89304808]
[1737290059564,0.57576232,104650.0,104640.0,0.23679897]
[1737290059761,0.70956232,104650.0,104640.0,0.23679897]
[1737290060362,0.70956232,104650.0,104640.0,0.23679921]
[1737290061154,0.70956232,104650.0,104640.0,0.28466021]
[1737290061763,0.21496232,104650.0,104640.0,0.28466021]
[1737290062651,0.03661123,104670.0,104640.0,1.11710021]
[1737290062855,0.48507889,104680.0,104670.0,0.047848]
[1737290063056,0.48507889,104680.0,104670.0,0.41643147]
[1737290063268,0.48507889,104680.0,104670.0,0.54983548]
[1737290063466,0.48507889,104680.0,104670.0,0.69413548]
[1737290063651,0.74614052,104700.0,104690.0,0.047838]
[1737290063852,0.74614052,104700.0,104690.0,0.05561764]
[1737290064165,0.508634,104700.0,104690.0,0.05561764]
[1737290065154,0.508634,104700.0,104690.0,0.28460535]
[1737290067052,0.508634,104700.0,104690.0,0.2933339]
[1737290067463,0.508634,104700.0,104690.0,0.2454959]
[1737290067656,0.508634,104700.0,104690.0,0.24549614]
[1737290068367,0.508634,104700.0,104690.0,0.24549609]
[1737290068567,0.508634,104700.0,104690.0,0.01650838]
[1737290068869,0.640634,104700.0,104690.0,0.01650838]
[1737290070162,0.640634,104700.0,104690.0,0.05955879]
[1737290074172,0.508634,104700.0,104690.0,0.05955879]
[1737290076270,0.532504,104700.0,104690.0,0.05955877]
[1737290077258,0.532504,104700.0,104690.0,0.23102427]
[1737290078270,0.532504,104700.0,104690.0,0.23581183]
[1737290079675,0.532504,104700.0,104690.0,0.22803205]
[1737290079872,0.532504,104700.0,104690.0,0.23581184]
[1737290081364,0.532504,104700.0,104690.0,0.17924529]
[1737290081574,0.669504,104700.0,104690.0,0.17445773]
[1737290081876,0.669504,104700.0,104690.0,0.1714655]
[1737290082083,0.047838,104690.0,104680.0,0.40045321]
[1737290082277,0.682238,104690.0,104680.0,0.41266401]
[1737290083269,0.682238,104690.0,104680.0,0.0122108]
[1737290083877,0.682238,104690.0,104680.0,0.01221099]
[1737290084380,0.682238,104690.0,104680.0,0.01699913]
[1737290085171,0.682238,104690.0,104680.0,0.01221099]
[1737290086869,0.543138,104690.0,104680.0,0.01221099]
[1737290087075,0.408638,104690.0,104680.0,0.01221099]
[1737290087377,0.408638,104690.0,104680.0,0.14751099]
[1737290087585,0.408638,104690.0,104680.0,1.64751099]
[1737290088168,0.408638,104690.0,104680.0,0.14751099]
[1737290088364,0.408638,104690.0,104680.0,0.15229887]
[1737290088576,0.408638,104690.0,104680.0,0.20014187]
[1737290089176,0.408638,104690.0,104680.0,0.19535399]
[1737290089375,0.236689,104690.0,104680.0,0.20014187]
[1737290089570,0.04438539,104700.0,104690.0,0.047838]
[1737290089771,0.17110012,104710.0,104700.0,0.047834]
[1737290089978,0.17110012,104710.0,104700.0,0.55411454]
[1737290090181,0.17110012,104710.0,104700.0,0.69061454]
[1737290090580,0.3608,104720.0,104710.0,0.047829]
[1737290090771,0.3608,104720.0,104710.0,0.19580954]
[1737290091172,0.3608,104720.0,104710.0,0.7109447]
[1737290092183,0.38467,104720.0,104710.0,0.7109423]
[1737290092787,0.38467,104720.0,104710.0,0.87804437]
[1737290094286,0.38467,104720.0,104710.0,0.88402756]
[1737290095286,0.02387,104720.0,104710.0,1.24482756]
[1737290095586,0.02387,104720.0,104710.0,1.23106623]
[1737290095774,0.02387,104720.0,104710.0,1.24592514]
[1737290096372,0.02387,104720.0,104710.0,1.58944876]
[1737290096581,0.02387,104720.0,104710.0,1.5985835]
[1737290098676,0.02387,104720.0,104710.0,1.25505988]
[1737290099474,0.071695,104720.0,104710.0,0.89425988]
[1737290099885,0.071695,104720.0,104710.0,0.89316133]
[1737290100077,0.071695,104720.0,104710.0,0.88418718]
[1737290100280,0.071695,104720.0,104710.0,0.89425982]
[1737290100779,0.432495,104720.0,104710.0,0.89425982]
[1737290100979,0.432495,104720.0,104710.0,0.49825723]
[1737290101195,0.432495,104720.0,104710.0,0.44072516]
[1737290101482,0.432495,104720.0,104710.0,0.44072509]
[1737290103689,0.432495,104720.0,104710.0,0.61222675]
[1737290105085,0.432495,104720.0,104710.0,0.61112937]
[1737290105293,0.38467,104720.0,104710.0,0.61112937]
[1737290105587,0.38467,104720.0,104710.0,0.97302675]
[1737290105588,0.02387,104720.0,104710.0,0.97302675]
[1737290106299,0.02387,104720.0,104710.0,0.80152509]
[1737290106491,0.02387,104720.0,104710.0,0.66132509]
[1737290106887,0.02387,104720.0,104710.0,0.66132375]
[1737290107691,0.02387,104720.0,104710.0,0.43262118]
[1737290108283,0.02387,104720.0,104710.0,0.43152418]
[1737290108482,0.432495,104720.0,104710.0,0.07072418]
[1737290109187,0.432495,104720.0,104710.0,0.24216002]
[1737290109592,0.02387,104720.0,104710.0,0.60296002]
[1737290109892,0.02387,104720.0,104710.0,0.24216002]
[1737290110596,0.02387,104720.0,104710.0,0.60296002]
[1737290110797,0.02387,104720.0,104710.0,0.60296004]
[1737290114307,0.02387,104720.0,104710.0,1.11152808]
[1737290115595,0.02387,104720.0,104710.0,1.11262468]
[1737290115787,0.001433,104730.0,104710.0,1.11262468]
[1737290115988,0.001433,104730.0,104720.0,0.4097216]
[1737290116184,0.001433,104730.0,104720.0,0.42348206]
[1737290116790,0.001433,104730.0,104720.0,0.93854557]
[1737290117388,0.001433,104730.0,104720.0,1.21764557]
[1737290118100,0.5003,104750.0,104740.0,0.047816]
[1737290118291,0.5003,104750.0,104740.0,0.06157646]
[1737290118693,0.5003,104750.0,104740.0,0.06157379]
[1737290119094,0.1395,104750.0,104740.0,0.42237379]
[1737290119595,0.1395,104750.0,104740.0,0.93868701]
[1737290120097,0.1395,104750.0,104740.0,0.93758809]
[1737290120595,0.187311,104750.0,104740.0,0.93758809]
[1737290120805,0.1395,104750.0,104740.0,1.09820009]
[1737290121194,0.75196362,104760.0,104750.0,0.047811]
[1737290121393,0.75196362,104760.0,104750.0,0.06156879]
[1737290121900,0.79976962,104760.0,104750.0,0.06156879]
[1737290122292,0.85630612,104760.0,104750.0,0.06156879]
[1737290123191,0.85630612,104760.0,104750.0,0.06156773]
[1737290123392,0.82834113,104760.0,104750.0,0.05558654]
[1737290124704,0.82834113,104760.0,104750.0,0.05558653]
[1737290125005,0.14313513,104760.0,104750.0,0.06156757]
[1737290125305,0.19094113,104760.0,104750.0,0.06156757]
[1737290126096,0.16225355,104760.0,104750.0,0.23329304]
[1737290126501,0.16225355,104760.0,104750.0,0.23329284]
[1737290126803,0.16225355,104760.0,104750.0,0.2332924]
[1737290127404,0.16225355,104760.0,104750.0,0.05558609]
[1737290128300,0.16225355,104760.0,104750.0,0.00777509]
[1737290128604,0.408606,104760.0,104750.0,0.40846785]
[1737290128804,0.541006,104760.0,104750.0,0.40368318]
[1737290128999,0.541006,104760.0,104750.0,0.40846829]
[1737290129207,0.541006,104760.0,104750.0,0.45627929]
[1737290129699,0.408606,104760.0,104750.0,0.227312]
[1737290129905,0.79235155,104770.0,104760.0,0.047806]
[1737290130109,0.79235155,104770.0,104760.0,0.05558153]
[1737290130702,0.79235155,104770.0,104760.0,0.06156231]
[1737290130895,0.677904,104770.0,104760.0,0.23328778]
[1737290131102,0.677904,104770.0,104760.0,0.23328724]
[1737290131299,0.544204,104770.0,104760.0,0.23328724]
[1737290131604,0.29747802,104780.0,104770.0,0.047802]
[1737290131914,0.11588002,104780.0,104770.0,0.06155777]
[1737290132093,0.11588002,104780.0,104770.0,0.55155777]
[1737290132501,0.11444755,104780.0,104770.0,0.537802]
[1737290132800,0.11444755,104780.0,104770.0,0.55155462]
[1737290133206,0.80132913,104790.0,104770.0,0.73271991]
[1737290133207,0.658194,104790.0,104770.0,0.73271991]
[1737290133507,0.525694,104790.0,104780.0,0.047797]
[1737290133706,0.525694,104790.0,104780.0,0.06154962]
[1737290134705,0.525694,104790.0,104780.0,0.232757]
[1737290135305,0.408594,104790.0,104780.0,0.232757]
[1737290135706,0.047794,104790.0,104780.0,0.232757]
[1737290135897,0.047794,104790.0,104780.0,0.23385281]
[1737290136106,0.047794,104790.0,104780.0,0.42344543]
[1737290136306,0.64239,104800.0,104790.0,0.047793]
[1737290136499,0.64239,104800.0,104790.0,0.06154562]
[1737290137107,0.64239,104800.0,104790.0,0.05556622]
[1737290137309,0.28159,104800.0,104790.0,0.05556622]
[1737290139006,0.28159,104800.0,104790.0,0.0555652]
[1737290140007,0.64239,104800.0,104790.0,0.0555652]
[1737290140215,0.64239,104800.0,104790.0,0.0077722]
[1737290140710,0.64239,104800.0,104790.0,0.00298931]
[1737290142604,0.64239,104800.0,104780.0,0.047797]
[1737290142911,0.655093,104790.0,104780.0,0.05557005]
[1737290143906,0.655093,104790.0,104780.0,0.22677743]
[1737290144309,0.51158998,104790.0,104780.0,0.22677743]
[1737290145506,0.408593,104790.0,104780.0,0.22677743]
[1737290145818,0.408593,104790.0,104780.0,0.47797743]
[1737290146515,0.408593,104790.0,104780.0,0.70694472]
[1737290147015,0.508589,104800.0,104790.0,0.047793]
[1737290147217,0.508589,104800.0,104790.0,0.05556586]
[1737290148412,0.508589,104800.0,104790.0,0.22668547]
[1737290149320,0.147789,104800.0,104790.0,0.22668547]
[1737290151320,0.147789,104800.0,104790.0,0.28453315]
[1737290151514,0.1,104800.0,104790.0,0.64533315]
[1737290151815,0.1,104800.0,104790.0,0.7731276]
[1737290152113,0.292282,104820.0,104810.0,0.047784]
[1737290152314,0.292282,104820.0,104810.0,0.05555576]
[1737290152315,0.173882,104820.0,104810.0,0.05555576]
[1737290152721,0.534682,104820.0,104810.0,0.05555576]
[1737290153113,0.173882,104820.0,104810.0,0.05555576]
[1737290153313,0.047782,104820.0,104810.0,0.05555576]
[1737290153516,0.047782,104820.0,104810.0,0.2266362]
[1737290154317,0.047782,104820.0,104810.0,0.2188653]
[1737290154517,0.047782,104820.0,104810.0,0.22663613]
[1737290154822,0.408582,104820.0,104810.0,0.45560342]
[1737290155020,0.408582,104820.0,104810.0,0.45560371]
[1737290155222,0.047782,104820.0,104810.0,0.45560371]
[1737290155418,0.408582,104820.0,104810.0,0.45560371]
[1737290155822,0.047782,104820.0,104810.0,0.45560371]
[1737290156026,0.408582,104820.0,104810.0,0.28452241]
[1737290156825,0.047782,104820.0,104810.0,0.29340938]
[1737290157016,0.408582,104820.0,104810.0,0.24562538]
[1737290157331,0.651882,104820.0,104810.0,0.24562538]
[1737290158729,0.651882,104820.0,104810.0,0.22896729]
[1737290158928,0.047784,104810.0,104800.0,0.33874076]
[1737290159129,0.408584,104810.0,104800.0,0.34651247]
[1737290159325,0.408584,104810.0,104800.0,0.34759679]
[1737290160025,0.408584,104810.0,104800.0,0.17892647]
[1737290160216,0.525584,104810.0,104800.0,0.00777171]
[1737290160423,0.525584,104810.0,104800.0,0.01666764]
[1737290160729,0.525584,104810.0,104800.0,0.00777198]
[1737290161337,0.64003155,104810.0,104800.0,0.00777198]
[1737290161849,0.047788,104800.0,104790.0,0.44791405]
[1737290162145,0.408588,104800.0,104790.0,0.45568626]
[1737290162735,0.408588,104800.0,104790.0,0.46166497]
[1737290163149,0.52303555,104800.0,104790.0,0.23378553]
[1737290163333,0.52303555,104800.0,104790.0,0.2417479]
[1737290163836,0.52303555,104800.0,104790.0,0.3621479]
[1737290164238,0.52303555,104800.0,104790.0,0.36323575]
[1737290164644,0.52303555,104800.0,104790.0,0.78184828]
[1737290164645,0.11444755,104800.0,104790.0,0.78184828]
[1737290165237,0.11444755,104800.0,104790.0,0.78076043]
[1737290165437,0.14313513,104810.0,104800.0,0.047788]
[1737290165637,0.14313513,104810.0,104800.0,0.2942262]
[1737290165948,0.11445854,104810.0,104800.0,1.7942262]
[1737290166447,0.11445854,104810.0,104800.0,0.2942262]
[1737290166650,0.16224254,104810.0,104800.0,0.2942262]
[1737290167148,0.04778,104820.0,104800.0,1.36997545]
[1737290167340,0.04778,104820.0,104810.0,0.047784]
[1737290167535,0.04778,104820.0,104810.0,0.06153296]
[1737290167740,0.04778,104820.0,104810.0,0.06261993]
[1737290168841,0.04778,104820.0,104810.0,0.71987181]
[1737290169542,0.04778,104820.0,104810.0,0.71987079]
[1737290169943,0.40858,104820.0,104810.0,0.71987079]
[1737290170139,0.40858,104820.0,104810.0,0.67208673]
[1737290170336,0.40858,104820.0,104810.0,0.89945441]
[1737290170534,0.64528,104820.0,104810.0,0.89945441]
[1737290170745,0.64528,104820.0,104810.0,0.88570565]
[1737290171842,0.64528,104820.0,104810.0,0.90054128]
[1737290172046,0.64528,104820.0,104810.0,0.24220331]
[1737290172239,0.64528,104820.0,104810.0,0.39981163]
[1737290173445,0.64528,104820.0,104810.0,0.17135786]
[1737290174652,0.78841513,104820.0,104810.0,0.00921007]
[1737290174848,0.047784,104810.0,104800.0,0.45074386]
[1737290175041,0.047784,104810.0,104800.0,0.46449386]
[1737290175548,0.408584,104810.0,104800.0,0.46449386]
[1737290175748,0.408584,104810.0,104800.0,0.41670786]
[1737290176050,0.408584,104810.0,104800.0,0.18510786]
[1737290176247,0.532084,104810.0,104800.0,0.18510786]
[1737290176844,0.047788,104800.0,104790.0,0.34070954]
[1737290177148,0.408588,104800.0,104790.0,0.35446085]
[1737290177644,0.047788,104800.0,104790.0,0.35446085]
[1737290177847,0.408588,104800.0,104790.0,0.36347126]
[1737290178047,0.19097882,104800.0,104790.0,0.36347123]
[1737290178249,0.14319082,104800.0,104790.0,0.36347123]
[1737290178450,0.14319082,104800.0,104790.0,0.72311005]
[1737290178649,0.17110012,104810.0,104800.0,0.047788]
[1737290178847,0.17110012,104810.0,104800.0,0.54989936]
[1737290179049,0.17110012,104810.0,104800.0,2.04958006]
[1737290179351,0.57968012,104820.0,104810.0,0.047784]
[1737290179550,0.57968012,104820.0,104810.0,0.06153478]
[1737290179744,0.17110012,104820.0,104810.0,0.06153478]
[1737290179950,0.17110012,104820.0,104810.0,0.06269536]
[1737290180552,0.17110012,104820.0,104810.0,0.42233478]
[1737290181048,0.408576,104830.0,104820.0,0.047779]
[1737290181242,0.408576,104830.0,104820.0,0.18098961]
[1737290181849,0.408576,104830.0,104820.0,0.30548961]
[1737290182456,0.3608,104830.0,104820.0,0.96774874]
[1737290182861,0.3608,104830.0,104820.0,0.96658891]
[1737290183159,0.408571,104840.0,104830.0,0.047775]
[1737290183355,0.047771,104840.0,104830.0,0.17692106]
[1737290183747,0.047771,104840.0,104830.0,0.53772106]
[1737290184363,0.41902681,104850.0,104830.0,0.53772106]
[1737290184553,0.41902681,104850.0,104830.0,0.48994606]
[1737290184754,0.41902681,104850.0,104840.0,0.04777]
[1737290184962,0.41902681,104850.0,104840.0,0.06151606]
[1737290185553,0.3608,104850.0,104840.0,0.06151606]
[1737290185861,0.3608,104850.0,104840.0,0.04777]
[1737290186167,0.3608,104850.0,104840.0,0.06151422]
[1737290186462,0.3608,104850.0,104840.0,0.28942787]
[1737290187163,0.38464,104850.0,104840.0,0.28942787]
[1737290187472,0.432405,104850.0,104840.0,0.28942785]
[1737290187856,0.432405,104850.0,104840.0,0.4124932]
[1737290188264,0.432405,104850.0,104840.0,0.40651746]
[1737290188868,0.432405,104850.0,104840.0,0.00776846]
[1737290189562,0.432405,104850.0,104840.0,0.00776852]
[1737290190064,0.793205,104850.0,104840.0,0.00776852]
[1737290190456,0.793205,104850.0,104840.0,0.01658758]
[1737290190764,0.908005,104850.0,104840.0,0.00776852]
[1737290191155,0.047773,104840.0,104820.0,0.69048226]
[1737290191461,0.408573,104840.0,104820.0,0.4763147]
[1737290191659,0.3608,104830.0,104820.0,0.4763147]
[1737290192058,0.3608,104830.0,104820.0,0.47515944]
[1737290192961,0.3608,104830.0,104820.0,0.30432409]
[1737290193263,0.3608,104830.0,104820.0,0.31329209]
[1737290193567,0.408574,104830.0,104820.0,0.31329209]
[1737290193767,0.408574,104830.0,104820.0,0.29954571]
[1737290194070,0.408574,104830.0,104820.0,0.31329214]
[1737290195868,0.408574,104830.0,104820.0,1.20392406]
[1737290196069,0.408574,104830.0,104820.0,0.91334606]
[1737290196270,0.528074,104830.0,104820.0,0.91334606]
[1737290197257,0.528074,104830.0,104820.0,0.91334721]
[1737290197770,0.528074,104830.0,104820.0,0.42134484]
[1737290199767,0.528074,104830.0,104820.0,0.41536763]
[1737290200374,0.528074,104830.0,104820.0,0.40759726]
[1737290200764,0.528074,104830.0,104820.0,0.17968361]
[1737290201470,0.528074,104830.0,104820.0,0.18745426]
[1737290203075,0.528074,104830.0,104820.0,0.19343158]
[1737290206082,0.528074,104830.0,104820.0,0.1945869]
[1737290206272,0.528074,104830.0,104820.0,0.42250055]
[1737290207479,0.047774,104830.0,104820.0,0.29956365]
[1737290208269,0.3608,104840.0,104820.0,0.29956365]
[1737290208474,0.3608,104840.0,104830.0,0.170975]
[1737290208475,0.408571,104840.0,104830.0,0.170975]
[1737290208683,0.047771,104840.0,104830.0,0.18587829]
[1737290208879,0.047771,104840.0,104830.0,0.54667829]
[1737290209178,0.047771,104840.0,104830.0,0.54667808]
[1737290209985,0.047771,104840.0,104830.0,1.20383996]
[1737290211278,0.047771,104840.0,104830.0,1.20384014]
[1737290211479,0.047771,104840.0,104830.0,0.94570105]
[1737290212572,0.047771,104840.0,104830.0,0.9445433]
[1737290213178,0.047771,104840.0,104830.0,0.94570066]
[1737290215287,0.047771,104840.0,104830.0,0.94454323]
[1737290217677,0.047771,104840.0,104830.0,0.77353346]
[1737290218177,0.047771,104840.0,104830.0,0.41273346]
[1737290218377,0.047771,104840.0,104830.0,0.77353346]
[1737290219087,0.047771,104840.0,104830.0,1.20033006]
[1737290219287,0.047771,104840.0,104830.0,1.20033002]
[1737290219586,0.408567,104850.0,104830.0,1.20033002]
[1737290219785,0.408567,104850.0,104840.0,0.04777]
[1737290219981,0.408567,104850.0,104840.0,0.0615154]
[1737290220386,0.408567,104850.0,104840.0,0.28961992]
[1737290220681,0.071607,104850.0,104840.0,0.65157764]
[1737290220878,0.071607,104850.0,104840.0,0.89427764]
[1737290221078,0.071607,104850.0,104840.0,0.53347764]
[1737290221488,0.071607,104850.0,104840.0,0.89427764]
[1737290221881,0.071607,104850.0,104840.0,0.96018274]
[1737290222185,0.071607,104850.0,104840.0,0.95902502]
[1737290222377,0.432407,104850.0,104840.0,0.95902502]
[1737290222582,0.432407,104850.0,104840.0,0.95902448]
[1737290222884,0.432407,104850.0,104840.0,0.58982561]
[1737290223087,0.432407,104850.0,104840.0,0.29935561]
[1737290223288,0.557807,104850.0,104840.0,0.29935561]
[1737290224285,0.557807,104850.0,104840.0,0.39891367]
[1737290225183,0.04777,104840.0,104830.0,0.28561075]
[1737290225386,0.53587,104840.0,104830.0,0.28561075]
[1737290225586,0.53587,104840.0,104830.0,0.22794222]
[1737290226894,0.047775,104830.0,104820.0,0.00896463]
[1737290227080,0.408575,104830.0,104820.0,0.01374714]
[1737290227282,0.047775,104830.0,104820.0,0.06152614]
[1737290227483,0.047775,104830.0,104820.0,0.42232614]
[1737290228294,0.1622049,104830.0,104820.0,0.42232614]
[1737290228493,0.1622049,104830.0,104820.0,0.42348306]
[1737290228688,0.1144299,104830.0,104820.0,0.42348306]
[1737290229398,0.30523827,104840.0,104820.0,0.42348306]
[1737290229692,0.30523827,104840.0,104830.0,0.2341]
[1737290229893,0.30523827,104840.0,104830.0,0.24784714]
[1737290230687,0.1622009,104840.0,104830.0,0.29562214]
[1737290231187,0.1622009,104840.0,104830.0,0.12397012]
[1737290231394,0.6457009,104840.0,104830.0,0.12397012]
[1737290231588,0.6457009,104840.0,104830.0,0.00777012]
[1737290231787,0.047779,104820.0,104810.0,1.17684751]
[1737290231986,0.047779,104820.0,104810.0,0.71841407]
[1737290232187,0.047779,104820.0,104810.0,0.35761407]
[1737290232513,0.047779,104820.0,104810.0,0.35761503]
[1737290232703,0.408579,104820.0,104810.0,0.35761503]
[1737290232994,0.408579,104820.0,104810.0,0.30983259]
[1737290233196,0.531279,104820.0,104810.0,0.30983265]
[1737290233399,0.7887913,104820.0,104810.0,0.0242219]
[1737290234593,0.531279,104820.0,104810.0,0.0242219]
[1737290235090,0.531279,104820.0,104810.0,0.0720059]
[1737290235295,0.531279,104820.0,104810.0,0.07316406]
[1737290236083,0.408579,104820.0,104810.0,0.07316406]
[1737290236300,0.408579,104820.0,104810.0,0.19496406]
[1737290236491,0.047779,104820.0,104810.0,0.19496406]
[1737290236691,0.047779,104820.0,104810.0,0.55576406]
[1737290237489,0.52304993,104830.0,104820.0,0.047779]